bitfinex-derivatives/quotes_BTCF0:USTF0_20250716
["timestamp","ask_amount","ask_price","bid_price","bid_amount"]
[1752678981139,0.3834007,118880.0,118860.0,0.0002]
[1752678981140,0.05704,118890.0,118880.0,0.1681786]
[1752678981444,0.04907,118880.0,118870.0,0.2572254]
[1752678981635,0.04907,118880.0,118860.0,0.1311022]
[1752678981835,0.05007,118880.0,118870.0,0.1681927]
[1752678982038,0.001,118880.0,118870.0,0.1681927]
[1752678982237,0.2162221,118880.0,118860.0,0.00495]
[1752678982437,0.1730827,118870.0,118860.0,0.0002]
[1752678982643,0.2221669,118860.0,118850.0,0.1684209]
[1752678982944,0.2221809,118850.0,118840.0,0.0002]
[1752678983140,0.05396,118840.0,118830.0,0.1684479]
[1752678983338,0.05396,118840.0,118830.0,0.1682479]
[1752678983339,0.04907,118840.0,118830.0,0.1682479]
[1752678983746,0.2572134,118860.0,118850.0,0.1682208]
[1752678983747,0.2221764,118860.0,118850.0,0.1682208]
[1752678983935,0.02427,118870.0,118860.0,0.1729567]
[1752678984140,0.1682325,118870.0,118860.0,0.63699398]
[1752678984336,0.1682325,118870.0,118850.0,0.2104632]
[1752678984337,0.2172767,118860.0,118850.0,0.2104632]
[1752678984535,0.04907,118860.0,118850.0,0.2150132]
[1752678984743,4e-05,118870.0,118860.0,0.1729565]
[1752678984942,8e-05,118870.0,118860.0,0.63699378]
[1752678985145,8e-05,118890.0,118880.0,0.1805182]
[1752678985348,8e-05,118890.0,118880.0,0.63696548]
[1752678985549,8e-05,118890.0,118880.0,0.3487502]
[1752678985747,0.02423,118910.0,118900.0,0.1728999]
[1752678986044,0.0002,118930.0,118920.0,0.1681216]
[1752678986239,0.0002,118930.0,118920.0,0.1804616]
[1752678986440,0.0002,118930.0,118920.0,0.3486376]
[1752678986645,0.0190869,118970.0,118960.0,0.1680652]
[1752678986845,0.253649,118970.0,118960.0,0.1680652]
[1752678987052,0.0433169,118970.0,118960.0,0.1728152]
[1752678987252,0.0190869,118970.0,118960.0,0.1728152]
[1752678987547,0.02423,118990.0,118980.0,0.1680369]
[1752678987749,0.02484,119000.0,118980.0,0.172838]
[1752678987950,0.02423,119010.0,119000.0,0.1727586]
[1752678988250,0.23442377,119010.0,119000.0,0.1680086]
[1752678988446,0.1680086,119000.0,118990.0,1.7100165]
[1752678988755,0.3010575,119020.0,119010.0,0.1679946]
[1752678989054,0.1922387,119000.0,118990.0,0.2100159]
[1752678989255,0.4274108,119000.0,118990.0,0.1680122]
[1752678989455,0.1680228,118990.0,118980.0,0.0916053]
[1752678989646,0.1680228,118990.0,118980.0,0.2643824]
[1752678989841,0.1922528,118990.0,118980.0,0.00475]
[1752678990041,0.1922528,118990.0,118970.0,1.7148026]
[1752678990042,0.1680369,118980.0,118970.0,1.7148026]
[1752678990249,0.1680369,118980.0,118960.0,0.0916188]
[1752678990250,0.1680511,118970.0,118960.0,0.168054]
[1752678990449,0.2594021,118970.0,118950.0,8.447e-05]
[1752678990649,0.0662376,118990.0,118960.0,0.1496062]
[1752678990853,0.02423,118980.0,118970.0,0.1680498]
[1752678991146,0.04907,119000.0,118970.0,0.50704718]
[1752678991350,0.00493,119020.0,119010.0,0.1679946]
[1752678991649,0.06140154,119020.0,119010.0,0.1679946]
[1752678991859,0.06140154,119020.0,119010.0,0.1579946]
[1752678992147,0.02423,119010.0,119000.0,0.2520095]
[1752678992350,0.234161,119050.0,119040.0,0.1679468]
[1752678992555,0.2345621,119050.0,119040.0,0.1679468]
[1752678992757,0.02423,119050.0,119040.0,0.1679468]
[1752678992956,0.1921681,119050.0,119040.0,0.2099303]
[1752678993158,0.1679522,119040.0,119030.0,0.2519362]
[1752678993457,0.02427,119060.0,119050.0,0.1679381]
[1752678993659,0.417352,119070.0,119060.0,0.157924]
[1752678994049,0.2494421,119070.0,119060.0,0.157924]
[1752678994352,0.01899683,119080.0,119060.0,0.58612]
[1752678994551,4e-05,119090.0,119080.0,0.1678958]
[1752678994746,4e-05,119090.0,119080.0,0.8261358]
[1752678994942,0.02427,119090.0,119080.0,0.8261358]
[1752678995148,0.1969884,119100.0,119090.0,0.1678817]
[1752678995353,0.02423,119100.0,119090.0,0.1678817]
[1752678995553,0.2098056,119120.0,119110.0,0.1678535]
[1752678995554,0.1969594,119120.0,119110.0,0.1678535]
[1752678995757,0.04396,119120.0,119110.0,0.1678535]
[1752678995950,0.2542921,119120.0,119110.0,0.8252935]
[1752678996344,0.02484,119100.0,119080.0,0.041972]
[1752678996547,0.1678958,119080.0,119070.0,0.0620561]
[1752678996744,0.4030538,119090.0,119080.0,0.1678958]
[1752678997044,0.1865706,119130.0,119110.0,0.1678516]
[1752678997251,0.0187436,119130.0,119120.0,0.1678394]
[1752678997851,0.0236336,119150.0,119140.0,0.1678113]
[1752678998152,0.0236336,119150.0,119130.0,0.0419545]
[1752678998153,0.0419546,119140.0,119110.0,0.0594305]
[1752678998448,0.02484,119100.0,119090.0,0.083939]
[1752678998750,0.02484,119110.0,119100.0,0.1678676]
[1752678999055,0.2766353,119110.0,119100.0,0.1678676]
[1752678999256,0.2351721,119110.0,119100.0,0.1678676]
[1752678999552,0.02973,119140.0,119130.0,0.1678178]
[1752678999760,0.2958669,119150.0,119130.0,0.7431479]
[1752679000054,0.04907,119130.0,119120.0,0.1258761]
[1752679000250,0.4272275,119130.0,119120.0,0.1678395]
[1752679000553,0.2594021,119130.0,119120.0,0.1678395]
[1752679000749,0.2594021,119130.0,119110.0,0.832199]
[1752679000750,0.0839174,119130.0,119110.0,0.041962]
[1752679000952,0.3056955,119140.0,119130.0,0.1678254]
[1752679001152,0.5160276,119140.0,119130.0,0.1678254]
[1752679001451,0.04907,119140.0,119130.0,0.1678254]
[1752679001652,0.2594021,119140.0,119130.0,0.8320954]
[1752679002050,0.2168813,119140.0,119130.0,0.1678254]
[1752679002250,0.2168954,119130.0,119120.0,0.9532642]
[1752679002445,0.2103721,119140.0,119130.0,0.1678254]
[1752679002652,4e-05,119140.0,119130.0,0.1725754]
[1752679002847,4e-05,119140.0,119130.0,0.1678254]
[1752679003052,0.04907,119160.0,119150.0,0.1677972]
[1752679003255,0.02912,119180.0,119170.0,0.167769]
[1752679003651,0.4072071,119180.0,119170.0,0.167769]
[1752679003856,0.4074071,119180.0,119170.0,0.167769]
[1752679004161,0.0002,119180.0,119170.0,0.182739]
[1752679004361,0.0002,119180.0,119170.0,0.189989]
[1752679004553,0.06096558,119230.0,119180.0,0.00475]
[1752679004554,0.1726005,119220.0,119180.0,0.00475]
[1752679004751,0.0468234,119200.0,119180.0,0.0419371]
[1752679005049,0.2642921,119190.0,119180.0,0.1677542]
[1752679005254,0.432033,119190.0,119180.0,0.1677542]
[1752679005557,0.04907,119190.0,119180.0,0.1677542]
[1752679005753,0.04907,119200.0,119190.0,0.0419341]
[1752679005953,0.04907,119200.0,119190.0,0.209675]
[1752679006161,0.2167968,119200.0,119190.0,0.209675]
[1752679006355,0.2167827,119210.0,119200.0,0.1677268]
[1752679006555,0.00489,119230.0,119220.0,0.1676987]
[1752679006750,0.18093578,119240.0,119230.0,0.1676846]
[1752679006954,0.22359738,119240.0,119230.0,0.1624346]
[1752679007260,0.44033788,119240.0,119230.0,0.8207546]
[1752679007450,0.27266738,119240.0,119230.0,2.3207546]
[1752679007651,0.44033788,119240.0,119230.0,2.3207546]
[1752679007858,0.44033788,119240.0,119230.0,1.6624346]
[1752679008056,0.44033788,119240.0,119230.0,1.6724345]
[1752679008252,0.44033788,119240.0,119230.0,2.3252845]
[1752679008556,0.2644021,119240.0,119230.0,2.33986125]
[1752679008754,0.4620725,119240.0,119230.0,2.3300345]
[1752679008950,0.2944021,119240.0,119230.0,2.3396613]
[1752679009150,0.2944021,119240.0,119230.0,2.3298345]
[1752679009354,0.04907,119280.0,119270.0,0.1676283]
[1752679009559,0.2904894,119290.0,119280.0,0.00475]
[1752679009749,0.1924683,119270.0,119260.0,0.2142954]
[1752679009951,0.02484,119250.0,119240.0,0.2562532]
[1752679010156,0.02484,119250.0,119240.0,0.29799431]
[1752679010360,0.1924964,119250.0,119240.0,0.01457441]
[1752679010555,0.1925105,119240.0,119230.0,1.80823076]
[1752679010751,0.1925105,119240.0,119230.0,0.00982556]
[1752679010962,0.1676846,119230.0,119220.0,0.26142591]
[1752679011257,0.1922446,119230.0,119220.0,6.406e-05]
[1752679011556,0.2219646,119230.0,119220.0,0.00989179]
[1752679011751,0.2219646,119230.0,119220.0,0.16776276]
[1752679011949,0.2171346,119230.0,119220.0,0.18254907]
[1752679012257,0.1676846,119230.0,119220.0,0.18254907]
[1752679012558,0.2171346,119230.0,119220.0,0.17758907]
[1752679012759,0.2171346,119230.0,119220.0,0.00989037]
[1752679012760,0.2219646,119230.0,119220.0,0.00989037]
[1752679012959,0.2219646,119230.0,119220.0,6.406e-05]
[1752679013260,0.2219646,119230.0,119190.0,0.01719581]
[1752679013261,0.1677268,119200.0,119190.0,0.01719581]
[1752679013461,0.2171768,119200.0,119190.0,0.19476549]
[1752679013664,0.2171768,119200.0,119190.0,0.02702459]
[1752679013850,0.2171768,119200.0,119160.0,0.2687177]
[1752679013851,0.167769,119170.0,119160.0,0.2687177]
[1752679014160,0.04952126,119170.0,119160.0,0.18257334]
[1752679014351,7.126e-05,119170.0,119160.0,0.20984334]
[1752679014755,0.21729026,119170.0,119160.0,0.18257334]
[1752679014951,7.126e-05,119170.0,119160.0,1.03435534]
[1752679015157,0.04945,119190.0,119180.0,0.172715]
[1752679015362,0.2910552,119200.0,119190.0,0.1677409]
[1752679015673,0.2910552,119200.0,119190.0,0.00983024]
[1752679015674,0.2958852,119200.0,119190.0,0.00983024]
[1752679015858,0.24912,119200.0,119190.0,0.17757124]
[1752679016054,0.04945,119210.0,119190.0,0.65604]
[1752679016257,0.2171556,119220.0,119210.0,0.1726728]
[1752679016465,0.2171556,119220.0,119210.0,0.1677128]
[1752679016668,0.2171487,119220.0,119210.0,0.8291128]
[1752679016857,0.2171487,119220.0,119210.0,0.1726728]
[1752679017060,0.02456,119220.0,119210.0,0.18954828]
[1752679017367,0.1925721,119240.0,119230.0,0.1676847]
[1752679017667,0.1925721,119240.0,119220.0,0.0888043]
[1752679017668,0.1676846,119230.0,119220.0,0.8706896]
[1752679017865,0.1676986,119220.0,119210.0,0.87738378]
[1752679018067,0.2171486,119220.0,119210.0,0.22146378]
[1752679018266,0.2171486,119220.0,119210.0,0.87738378]
[1752679018665,0.2171486,119220.0,119210.0,0.66731548]
[1752679018666,0.2219786,119220.0,119210.0,0.66731548]
[1752679018964,0.2219786,119220.0,119210.0,0.83502818]
[1752679019160,0.04945,119220.0,119210.0,0.83502818]
[1752679019365,0.05045,119230.0,119220.0,0.1676986]
[1752679019663,0.2181346,119230.0,119220.0,0.1676986]
[1752679019863,0.2181346,119230.0,119220.0,0.8228586]
[1752679020064,0.05045,119230.0,119220.0,0.8228586]
[1752679020266,0.05428,119220.0,119210.0,0.22146928]
[1752679020463,0.05428,119220.0,119210.0,0.01183548]
[1752679020464,0.2219787,119220.0,119210.0,0.01183548]
[1752679020967,0.2220209,119190.0,119180.0,0.01688011]
[1752679021167,0.2220209,119190.0,119180.0,0.18463501]
[1752679021463,0.2222209,119190.0,119180.0,0.01688011]
[1752679021665,0.2222209,119190.0,119140.0,0.2097622]
[1752679021666,0.00483,119150.0,119140.0,0.2097622]
[1752679021858,0.21027955,119150.0,119140.0,0.2097622]
[1752679022060,0.02489,119170.0,119160.0,0.0888464]
[1752679022263,0.01489,119180.0,119170.0,0.2466107]
[1752679022568,0.2096643,119200.0,119160.0,0.6974628]
[1752679022569,0.1677409,119190.0,119180.0,0.2116808]
[1752679022870,0.1677409,119190.0,119180.0,0.2166408]
[1752679023065,0.1677409,119190.0,119180.0,0.002]
[1752679023773,0.6677409,119190.0,119180.0,0.002]
[1752679024070,0.1923572,119150.0,119140.0,0.00496]
[1752679024263,0.2172472,119150.0,119140.0,0.00496]
[1752679024463,0.2172612,119140.0,119130.0,0.01702253]
[1752679024658,0.2220912,119140.0,119130.0,0.01702253]
[1752679025063,0.2220912,119140.0,119130.0,3e-08]
[1752679025263,0.2220912,119140.0,119110.0,0.00496]
[1752679025264,0.2173035,119110.0,119100.0,0.0001064]
[1752679025668,0.2173035,119110.0,119100.0,0.167974]
[1752679025870,0.2173035,119110.0,119100.0,0.0001064]
[1752679026162,0.2221335,119110.0,119100.0,0.167974]
[1752679026359,0.2173035,119110.0,119100.0,0.172934]
[1752679026766,0.04945,119110.0,119100.0,0.172934]
[1752679026960,0.2173035,119110.0,119100.0,0.172934]
[1752679027167,0.2173035,119110.0,119100.0,0.0001064]
[1752679027361,0.2221335,119110.0,119100.0,0.0001064]
[1752679027763,0.2173035,119110.0,119100.0,0.167974]
[1752679027963,0.2173035,119110.0,119100.0,0.0050664]
[1752679028160,0.2173035,119110.0,119100.0,0.0001064]
[1752679028361,0.0419674,119100.0,119070.0,0.0153275]
[1752679028562,0.2173458,119080.0,119070.0,0.00496]
[1752679028866,0.1679381,119050.0,119040.0,0.02414]
[1752679029065,0.04945,119040.0,119030.0,0.2149134]
[1752679029566,0.2174163,119030.0,119020.0,0.16807511]
[1752679029759,0.2174163,119030.0,119020.0,9.471e-05]
[1752679029964,0.04945,119030.0,119020.0,0.16807511]
[1752679030168,0.04945,119030.0,119020.0,0.17303511]
[1752679030366,0.2174163,119030.0,119020.0,9.471e-05]
[1752679030667,0.04945,119000.0,118990.0,0.2100221]
[1752679031568,0.08410371,119000.0,118980.0,0.2520422]
[1752679031773,0.08410371,119000.0,118970.0,0.192206]
[1752679031774,0.1334653,118990.0,118970.0,0.192206]
[1752679031967,0.04945,118990.0,118980.0,0.2520524]
[1752679032567,0.04954471,118990.0,118980.0,0.1729969]
[1752679032766,9.471e-05,118990.0,118980.0,0.2163369]
[1752679033067,9.471e-05,118990.0,118980.0,0.8903369]
[1752679033569,0.07954471,118990.0,118980.0,0.1829969]
[1752679034073,0.07954471,118990.0,118980.0,0.2263369]
[1752679034074,0.03009471,118990.0,118980.0,0.2263369]
[1752679034272,0.03009471,118990.0,118980.0,0.2071569]
[1752679034469,0.03009471,118990.0,118980.0,0.3944249]
[1752679034662,1e-08,118990.0,118980.0,0.85087218]
[1752679034968,0.02456,119030.0,119020.0,0.1971005]
[1752679035171,0.05456,119050.0,119040.0,0.1729123]
[1752679035370,0.05456,119050.0,119040.0,0.1970723]
[1752679035567,0.03,119050.0,119040.0,0.8799323]
[1752679036269,0.2224982,119050.0,119040.0,0.8316323]
[1752679036466,0.2224982,119050.0,119040.0,0.83276611]
[1752679036673,0.2224982,119050.0,119040.0,0.16908611]
[1752679036866,0.2522182,119050.0,119040.0,0.00113381]
[1752679037066,0.2174446,119010.0,119000.0,0.2100054]
[1752679037267,0.2222746,119010.0,119000.0,0.1680039]
[1752679037472,0.04945,119010.0,119000.0,0.1680039]
[1752679037668,0.3014246,119020.0,119010.0,0.1679946]
[1752679037971,0.2174325,119020.0,119010.0,0.1679946]
[1752679038365,0.04945,119020.0,119010.0,0.1729546]
[1752679038674,0.2176305,119020.0,119010.0,0.1679946]
[1752679038877,0.04965,119020.0,119010.0,0.1679946]
[1752679039076,0.0248,119020.0,119010.0,0.1971146]
[1752679039273,0.2176705,119020.0,119010.0,0.1679946]
[1752679039671,0.1679946,119010.0,119000.0,0.2941983]
[1752679039877,0.1927546,119010.0,119000.0,0.2939983]
[1752679040173,0.1927546,119010.0,119000.0,0.2431171]
[1752679040174,0.02476,119010.0,119000.0,0.2431171]
[1752679040374,0.0002,119010.0,119000.0,0.2431171]
[1752679040571,0.0002,119010.0,119000.0,0.71874438]
[1752679040772,4e-05,119020.0,119010.0,0.2157946]
[1752679040976,0.2167682,119050.0,119040.0,0.1965723]
[1752679041173,0.02456,119050.0,119040.0,0.1965723]
[1752679041476,0.2157241,119060.0,119050.0,0.1679298]
[1752679041672,0.1914682,119050.0,119040.0,0.02862]
[1752679041870,0.2157484,119050.0,119040.0,0.1679523]
[1752679042077,0.2157382,119050.0,119040.0,0.1724623]
[1752679042275,0.0668291,119070.0,119060.0,0.1679241]
[1752679042478,0.234739,119070.0,119060.0,0.1679241]
[1752679042673,0.0425591,119070.0,119060.0,0.1724341]
[1752679042980,0.2104691,119070.0,119060.0,0.1965441]
[1752679043378,0.0478,119030.0,119020.0,0.2519516]
[1752679043582,0.2157664,119030.0,119020.0,0.2519516]
[1752679043775,0.1317865,119030.0,119010.0,0.2519812]
[1752679043977,0.1679664,119030.0,119020.0,0.9026354]
[1752679044171,0.1075109,119040.0,119030.0,0.1965864]
[1752679044172,0.1914823,119040.0,119030.0,0.1965864]
[1752679044377,0.02353,119050.0,119040.0,0.1965723]
[1752679044581,0.251899,119060.0,119050.0,0.1965582]
[1752679044582,0.167935,119060.0,119050.0,0.1965582]
[1752679044880,0.6075296,119070.0,119050.0,0.9349889]
[1752679045085,0.2334526,119050.0,119040.0,0.836221]
[1752679045381,0.2334526,119050.0,119040.0,0.66827]
[1752679045382,0.2157381,119050.0,119040.0,0.66827]
[1752679045578,0.2157381,119050.0,119040.0,0.00451]
[1752679045977,0.1914681,119050.0,119040.0,0.1724623]
[1752679046175,0.1914681,119050.0,119040.0,0.02862]
[1752679046480,0.2157781,119050.0,119040.0,0.00751]
[1752679046677,0.2203381,119050.0,119040.0,0.003]
[1752679046883,0.2203381,119050.0,119020.0,0.1126083]
[1752679046884,0.1679664,119030.0,119020.0,0.8598762]
[1752679047075,0.1679805,119020.0,119010.0,1.4128579]
[1752679047273,0.1915105,119020.0,119010.0,0.00451]
[1752679047478,0.2157946,119010.0,119000.0,0.6636]
[1752679047874,0.1680229,118990.0,118980.0,0.9211087]
[1752679048078,0.1680229,118990.0,118980.0,0.9019287]
[1752679048482,0.2520294,119000.0,118990.0,0.1680229]
[1752679048790,0.1679957,119010.0,119000.0,0.2806278]
[1752679049082,0.1679957,119010.0,118990.0,0.1725214]
[1752679049083,0.2158087,119000.0,118990.0,0.1725214]
[1752679049475,0.2335287,119010.0,119000.0,0.1680087]
[1752679049680,0.1915293,119010.0,119000.0,0.1966287]
[1752679050685,0.1915387,119000.0,118990.0,0.9146173]
[1752679050884,0.2158087,119000.0,118990.0,0.8306228]
[1752679051085,0.2158087,119000.0,118990.0,0.6626]
[1752679051385,0.215837,118980.0,118970.0,0.22693868]
[1752679051686,0.215837,118980.0,118970.0,0.01688178]
[1752679051687,0.220397,118980.0,118970.0,0.01688178]
[1752679052386,0.220397,118980.0,118940.0,0.1680907]
[1752679052387,0.2158793,118950.0,118940.0,0.1680907]
[1752679052880,0.2158935,118940.0,118930.0,6.156e-05]
[1752679053086,0.2204535,118940.0,118930.0,6.156e-05]
[1752679053282,0.2158935,118940.0,118930.0,0.16816916]
[1752679053882,0.0478,118940.0,118930.0,0.16816916]
[1752679054084,0.2158934,118940.0,118930.0,0.17267916]
[1752679054389,0.2158934,118940.0,118930.0,0.18067916]
[1752679054581,0.5478,118950.0,118940.0,0.1680934]
[1752679054881,0.6680793,118950.0,118940.0,1.33354068]
[1752679055086,0.5478,118950.0,118940.0,0.1680934]
[1752679055287,0.0478,118950.0,118940.0,0.8294534]
[1752679055482,0.3044504,118970.0,118960.0,0.1680652]
[1752679055678,0.3044504,118970.0,118920.0,0.47562728]
[1752679055679,0.10760247,118950.0,118910.0,0.00300763]
[1752679055884,0.2027517,118920.0,118910.0,0.00300763]
[1752679056086,0.1681217,118920.0,118910.0,0.00300763]
[1752679056282,0.1681217,118920.0,118910.0,0.88474353]
[1752679056791,0.1681217,118920.0,118910.0,0.22310343]
[1752679057087,0.2521756,118930.0,118920.0,0.1681217]
[1752679057384,0.2101458,118930.0,118920.0,0.8809617]
[1752679057583,0.0842499,118940.0,118930.0,0.1681076]
[1752679057777,0.2523573,118940.0,118930.0,0.05196]
[1752679057982,0.27035877,118940.0,118930.0,0.71248]
[1752679058181,0.27035877,118940.0,118930.0,0.05196]
[1752679058383,0.2869873,118940.0,118930.0,0.66048]
[1752679058578,0.1681076,118930.0,118920.0,0.02805]
[1752679058787,0.1681217,118920.0,118910.0,0.23632557]
[1752679058982,0.1681217,118920.0,118910.0,0.07792417]
[1752679059289,0.0422245,118940.0,118910.0,0.02596417]
[1752679059486,0.5002,118940.0,118930.0,0.2200676]
[1752679059685,0.5002,118940.0,118930.0,2.3805876]
[1752679059889,0.05356432,118990.0,118980.0,0.1680369]
[1752679060184,0.05236,118980.0,118970.0,0.9124264]
[1752679060387,0.2383941,118980.0,118970.0,0.9124264]
[1752679061087,0.0703572,118980.0,118970.0,0.9124264]
[1752679061282,0.05236,118980.0,118970.0,0.9124264]
[1752679061786,0.03193432,118990.0,118980.0,0.2122169]
[1752679062288,0.08429432,118990.0,118980.0,0.1680369]
[1752679062488,0.25231712,118990.0,118980.0,0.8272369]
[1752679062693,0.23931712,118990.0,118980.0,0.1680369]
[1752679062985,0.06036,118980.0,118970.0,1.4137029]
[1752679063181,0.06036,118980.0,118970.0,2.0725829]
[1752679063380,0.05236,118980.0,118970.0,1.4137029]
[1752679063786,0.01893432,118990.0,118980.0,0.1913769]
[1752679064088,0.02493432,118990.0,118980.0,0.1913769]
[1752679064286,0.19295712,118990.0,118980.0,0.1913769]
[1752679064487,0.02493432,118990.0,118980.0,0.1913769]
[1752679064791,0.24075712,118990.0,118980.0,0.1680369]
[1752679065093,0.006,118990.0,118980.0,1.3887449]
[1752679065292,0.006,118990.0,118980.0,0.4803049]
[1752679065487,0.006,118990.0,118980.0,1.3892649]
[1752679065696,0.01907154,119020.0,119010.0,0.2100146]
[1752679065887,0.01907154,119020.0,119010.0,1.32534188]
[1752679066086,0.01907154,119020.0,119010.0,0.66646188]
[1752679066287,0.03703434,119020.0,119010.0,0.8688946]
[1752679066482,0.01907154,119020.0,119010.0,0.8688946]
[1752679066693,0.01907154,119020.0,119010.0,0.8266346]
[1752679066890,0.18705204,119020.0,119010.0,0.1679946]
[1752679067190,4e-05,119070.0,119060.0,0.192034]
[1752679067392,0.0419614,119120.0,119090.0,0.1259063]
[1752679067589,0.2098361,119100.0,119090.0,0.04745]
[1752679067792,0.0179572,119100.0,119090.0,0.2153317]
[1752679067996,0.1858248,119100.0,119090.0,0.04745]
[1752679068295,0.1678817,119090.0,119080.0,0.2518316]
[1752679068485,0.01769998,119090.0,119080.0,0.341264]
[1752679068800,0.5,119100.0,119090.0,0.2198417]
[1752679069000,0.2481965,119100.0,119090.0,0.9779217]
[1752679069189,0.00456,119150.0,119140.0,0.0419516]
[1752679069493,0.0419448,119170.0,119160.0,0.1677831]
[1752679069494,0.02353,119170.0,119160.0,0.1677831]
[1752679069794,0.167769,119170.0,119160.0,2.15788]
[1752679069986,0.167769,119170.0,119160.0,2.3256631]
[1752679070394,0.2797325,119180.0,119170.0,0.167769]
[1752679070696,0.2797325,119180.0,119160.0,2.1998229]
[1752679070697,0.196199,119170.0,119160.0,1.5]
[1752679070889,0.02843,119170.0,119160.0,2.3249831]
[1752679071200,0.0419314,119210.0,119170.0,0.0419396]
[1752679071201,0.18198494,119210.0,119170.0,0.0419396]
[1752679071398,0.06378539,119230.0,119220.0,0.1676987]
[1752679071605,0.10329955,119240.0,119220.0,0.67063058]
[1752679071797,8e-05,119250.0,119200.0,0.50293798]
[1752679071992,0.2621924,119210.0,119200.0,0.1]
[1752679072196,0.2622095,119200.0,119180.0,0.2516217]
[1752679072392,0.05255,119200.0,119190.0,0.2516092]
[1752679072693,0.2096289,119220.0,119210.0,0.1677026]
[1752679072694,0.1676987,119220.0,119210.0,0.1677026]
[1752679072897,0.0049,119230.0,119220.0,0.0419236]
[1752679073096,0.05255,119230.0,119220.0,0.251536]
[1752679073395,0.02283,119230.0,119220.0,0.251536]
[1752679073605,0.0298,119250.0,119240.0,0.1676705]
[1752679073791,0.05263,119250.0,119240.0,0.8250705]
[1752679074103,0.2202865,119250.0,119240.0,0.6574]
[1752679074295,0.1973905,119240.0,119230.0,0.1676846]
[1752679074601,0.04765,119240.0,119230.0,0.8246446]
[1752679074797,0.02283,119240.0,119230.0,0.8246446]
[1752679074996,0.1677377,119250.0,119240.0,0.1676705]
[1752679074997,0.00608,119250.0,119240.0,0.1676705]
[1752679075295,0.2213865,119250.0,119240.0,0.8241905]
[1752679075507,0.2262865,119250.0,119240.0,0.8241905]
[1752679075709,0.2262865,119250.0,119220.0,0.0419231]
[1752679075710,0.0049,119240.0,119220.0,0.0419231]
[1752679075999,0.256438,119230.0,119220.0,0.8240568]
[1752679076200,0.256438,119230.0,119220.0,0.8240587]
[1752679076403,0.1676987,119220.0,119210.0,0.01723665]
[1752679076605,0.2202487,119220.0,119210.0,0.01743665]
[1752679076897,0.2202487,119220.0,119180.0,0.01714487]
[1752679076898,0.2202909,119190.0,119180.0,0.01714487]
[1752679077097,0.2202909,119190.0,119180.0,0.67306487]
[1752679077297,0.05255,119190.0,119180.0,0.84081977]
[1752679077502,0.2202909,119190.0,119180.0,0.84081977]
[1752679078292,0.2202909,119190.0,119180.0,0.01714487]
[1752679078505,0.2202909,119190.0,119180.0,0.02314487]
[1752679079099,0.2203331,119160.0,119150.0,0.67186428]
[1752679079593,0.2203331,119160.0,119150.0,0.83966148]
[1752679079992,0.02482,119160.0,119150.0,0.83966148]
[1752679080301,0.05255,119180.0,119170.0,0.167769]
[1752679080501,0.2103049,119180.0,119170.0,0.167769]
[1752679080698,0.04255,119180.0,119160.0,0.0838867]
[1752679080899,0.1677831,119160.0,119150.0,0.84468008]
[1752679081207,0.1926431,119160.0,119150.0,0.01771414]
[1752679081806,0.02486,119160.0,119150.0,0.18551134]
[1752679082106,0.50004,119160.0,119150.0,0.21298134]
[1752679082503,0.6678231,119160.0,119150.0,0.04518414]
[1752679082808,0.6678231,119160.0,119150.0,0.01771414]
[1752679082809,0.7154731,119160.0,119150.0,0.01771414]
[1752679083006,0.7203731,119160.0,119150.0,0.01771414]
[1752679083308,0.7203731,119160.0,119150.0,0.18451134]
[1752679083503,0.7203731,119160.0,119150.0,0.01671414]
[1752679083698,0.54769,119160.0,119150.0,0.18933134]
[1752679083902,0.50304,119160.0,119150.0,0.21198134]
[1752679084401,0.50304,119160.0,119150.0,0.21654134]
[1752679084807,0.6678231,119160.0,119150.0,0.21654134]
[1752679085005,0.6926431,119160.0,119150.0,0.86530134]
[1752679085204,0.04769,119160.0,119150.0,0.18451134]
[1752679085406,4e-05,119160.0,119150.0,0.96490134]
[1752679085600,0.1905586,119200.0,119150.0,0.76963414]
[1752679085801,0.1925609,119190.0,119180.0,0.195225]
[1752679086014,0.1925609,119190.0,119180.0,0.848025]
[1752679086207,0.02482,119190.0,119180.0,0.848025]
[1752679086406,0.1925609,119190.0,119180.0,0.848025]
[1752679086912,0.2153909,119190.0,119180.0,0.825375]
[1752679087114,0.2153909,119190.0,119170.0,0.1258217]
[1752679087115,0.167755,119180.0,119170.0,0.0887005]
[1752679087419,0.02482,119180.0,119170.0,0.9512794]
[1752679087601,0.04765,119190.0,119180.0,0.167755]
[1752679087909,0.167755,119180.0,119170.0,0.9691068]
[1752679088104,0.02482,119180.0,119170.0,0.9739408]
[1752679088311,0.02482,119180.0,119170.0,0.3210608]
[1752679088615,0.1906121,119190.0,119180.0,0.195225]
[1752679088616,0.02486,119190.0,119180.0,0.195225]
[1752679088804,0.1926009,119190.0,119180.0,0.195225]
[1752679089008,0.215419,119170.0,119160.0,0.1952531]
[1752679089204,0.215419,119170.0,119160.0,0.1726031]
[1752679089513,0.215419,119170.0,119160.0,0.00482]
[1752679089808,0.04765,119170.0,119160.0,0.1726031]
[1752679090000,0.04765,119170.0,119160.0,0.8471731]
[1752679090206,0.04765,119170.0,119160.0,0.8245231]
[1752679090405,0.04765,119170.0,119160.0,0.8472931]
[1752679090406,0.02482,119170.0,119160.0,0.8472931]
[1752679090606,0.215405,119180.0,119170.0,0.251638]
[1752679090806,0.167769,119170.0,119160.0,0.9263518]
[1752679091007,0.215419,119170.0,119160.0,0.9085218]
[1752679091312,0.215419,119170.0,119160.0,0.65204]
[1752679091510,0.2154331,119160.0,119150.0,0.01671414]
[1752679091715,0.2203331,119160.0,119150.0,0.01671414]
[1752679092110,0.7203331,119160.0,119150.0,0.01671414]
[1752679092417,0.2203613,119140.0,119130.0,0.01711705]
[1752679092716,0.1678535,119110.0,119100.0,0.8253253]
[1752679092906,0.2155035,119110.0,119100.0,0.8253253]
[1752679093106,0.1678817,119090.0,119080.0,0.3258297]
[1752679093411,0.1678817,119090.0,119080.0,0.2986197]
[1752679093412,0.2155317,119090.0,119080.0,0.2986197]
[1752679093614,0.2157317,119090.0,119080.0,0.00482]
[1752679093918,0.1678958,119080.0,119070.0,0.92944411]
[1752679094212,0.2157458,119080.0,119070.0,8.439e-05]
[1752679094525,0.2157458,119080.0,119070.0,0.16799429]
[1752679095310,0.2157458,119080.0,119070.0,8.439e-05]
[1752679095523,0.2206458,119080.0,119070.0,8.439e-05]
[1752679095905,0.2204599,119070.0,119060.0,0.01719253]
[1752679096110,0.2204599,119070.0,119030.0,0.1679618]
[1752679096111,0.219694,119060.0,119050.0,0.0002]
[1752679096312,0.2155881,119050.0,119040.0,0.0002]
[1752679096520,0.2156023,119040.0,119030.0,0.8662558]
[1752679096816,0.2156023,119040.0,119020.0,0.0002]
[1752679096817,0.1679664,119030.0,119020.0,0.0002]
[1752679097012,0.1679805,119020.0,119010.0,0.2150039]